[Event "4th Tata Steel India Blitz Open 2022"]
[Site "Kolkota"]
[Date "2022.12.04"]
[Round "13.1"]
[White "Mamedyarov, Shakhriyar"]
[Black "Nakamura, Hikaru"]
[Result "1/2-1/2"]
[ECO "E20"]
[WhiteElo "2741"]
[BlackElo "2768"]
[Annotator "TA"]
[PlyCount "100"]
[EventDate "2022.11.29"]
[EventType "tourn"]
[EventCountry "IND"]
[SourceTitle "playchess.com"]
[Source "ChessBase"]
[SourceQuality "1"]
[TimeControl "180+2"]

{[%evp 15,100,-33,-31,-47,0,0,0,0,7,0,0,-4,0,-15,22,25,22,31,53,43,29,22,34,30,35,0,0,-1,97,39,118,107,139,29,25,27,32,35,34,0,0,0,20,48,19,22,20,38,21,0,0,0,0,0,84,0,0,0,0,0,0,0,195,0,0,0,191,0,0,0,0,0,0,0,0,0,0,0,7,0,0,0,0,0,0,0,0]} 1. d4 {[%emt 0:00:00]} Nf6 {[%emt 0:00:01]} 2. c4 {[%emt 0:00:01]} e6 {[%emt 0:00:01]} 3. Nc3 {[%emt 0:00:01]} Bb4 {[%emt 0:00:01]} 4. g3 {[%emt 0:00:01]} O-O {[%emt 0:00:03]} 5. Bg2 {[%emt 0:00:01]} d5 {[%emt 0:00:01]} 6. Nf3 {[%emt 0:00:00]} dxc4 {[%emt 0:00:01]} 7. O-O {[%emt 0:00:02]} Nc6 {[%emt 0:00:03]} 8. Re1 {[%emt 0:00:01]} Rb8 {[%emt 0:00:17]} 9. a3 {[%emt 0:00:06] E20: Nimzo-Indian: 4 g3 and 4 f3.} Be7 {[%emt 0:00:04]} (9... Ba5 $15) 10. Qa4 $11 {[%emt 0:00:01]} Nxd4 {[%emt 0:00:40]} 11. Nxd4 {[%emt 0:00:02]} Qxd4 {[%emt 0:00:01] [#]} 12. Rd1 $146 {[%emt 0:00:01]} ({Predecessor:} 12. Be3 Qg4 13. h3 Qh5 14. Qxc4 c5 15. g4 Qg6 16. Bf4 Ra8 17. Rad1 a6 18. a4 {0-1 (40) Bohm,H (2435)-Farago,I (2495) Amsterdam 1985}) 12... Qb6 {[%emt 0:00:22]} 13. Qxc4 {[%emt 0:00:09]} Bd7 {[%emt 0:00:02]} 14. b4 {[%emt 0:00:22]} c6 {[%emt 0:00:20]} 15. Be3 {[%emt 0:00:07][%cal Bc1e3,Be3a7,Ba7c5][%mdl 32]} Qc7 {[%emt 0:00:02]} 16. Bxa7 {[%emt 0:00:05]} Rbc8 {[%emt 0:00:06] And now ...b6 would win.} 17. Bc5 {[%emt 0:00:22] Against b6} b5 {[%emt 0:00:01]} 18. Qd4 {[%emt 0:00:01]} e5 $1 {[%emt 0:00:01]} 19. Qe3 {[%emt 0:00:06]} Ng4 {[%emt 0:00:01]} 20. Qf3 {[%emt 0:00:17]} Bxc5 {[%emt 0:00:08]} 21. bxc5 {[%emt 0:00:01]} Be6 {[%emt 0:00:22]} (21... f5 $11) 22. Ne4 {[%emt 0:00:02]} (22. Rd6 $16) 22... Qa7 {[%emt 0:00:06]} (22... f5 $14 23. Nd6 e4) 23. Ng5 $16 {[%emt 0:00:10]} (23. Qc3 {simplifies} Nf6 24. Nxf6+ gxf6 25. h4) 23... Bd7 {[%emt 0:00:09]} 24. Nxh7 {[%emt 0:00:09] White is more active.} Kxh7 $11 {[%emt 0:00:02]} 25. Qd3+ {[%emt 0:00:01]} f5 {[%emt 0:00:01][%cal Oa7c5]} 26. Qxd7 {[%emt 0:00:03]} Qxc5 {[%emt 0:00:00]} 27. e3 {[%emt 0:00:07]} (27. Rf1 {is interesting.} e4 28. Bxe4 Nxf2 29. Rac1) 27... e4 {[%emt 0:00:01][%cal Oc8d8]} 28. Bh3 {[%emt 0:00:04]} Ne5 {[%emt 0:00:05]} 29. Bxf5+ {[%emt 0:00:07]} Kh8 {[%emt 0:00:01]} 30. Qxc8 {[%emt 0:00:03]} Rxc8 {[%emt 0:00:00]} 31. Bxc8 {[%emt 0:00:01]} Nd3 {[%emt 0:00:05]} 32. Ra2 {[%emt 0:00:17]} Qf8 {[%emt 0:00:18]} 33. Bh3 {[%emt 0:00:20]} c5 $1 {[%emt 0:00:01]} 34. Bg2 {[%emt 0:00:02]} Qf5 {[%emt 0:00:01]} (34... Qe8 $1 $11 {remains equal.}) 35. Rc2 {[%emt 0:00:16]} (35. a4 $1 $16 {[%cal Ra4b5]} bxa4 36. Rf1 (36. Rxa4 $2 {is the wrong capture.} Qxf2+ 37. Kh1 Qxe3 $19)) 35... c4 {[%emt 0:00:00]} 36. Rb1 {[%emt 0:00:02]} g5 {[%emt 0:00:06]} 37. h3 {[%emt 0:00:01]} Kg7 38. Rf1 {[%emt 0:00:14][%cal Oa3a4] Threatens to win with a4!} Qe5 $2 {[%emt 0:00:09] [#] Inhibits a4.} (38... Qd5 $11 {and Black is okay.}) 39. Rb1 $2 {[%emt 0:00:01]} ({White has to play} 39. a4 $1 $18 {[%cal Ra4b5]}) 39... Qf5 {[%emt 0:00:01]} 40. Rf1 {[%emt 0:00:02][%cal Oa3a4] aiming for a4!} Kf6 $2 {[%emt 0:00:06] [#]} (40... Qe5 $11) 41. Rb1 $2 {[%emt 0:00:01]} ({Only move:} 41. a4 $1 $18 {[%cal Ra4b5]}) 41... Ke7 {[%emt 0:00:01] The position is equal.} 42. Kh2 {[%emt 0:00:04][%cal Oa3a4] Black must now prevent a4!} Kd6 {[%emt 0:00:04]} 43. a4 {[%emt 0:00:01]} bxa4 {[%emt 0:00:03]} 44. Rxc4 {[%emt 0:00:02]} Qxf2 {[%emt 0:00:02]} 45. Rxe4 {[%emt 0:00:19] Strongly threatening Rd4+. Chess con chili.} Ne1 {[%emt 0:00:05][%csl Ge1][%cal Rf2g2]} 46. Rd4+ {[%emt 0:00:02]} Ke6 {[%emt 0:00:04][%csl Ge1][%cal Rf2g2]} 47. Rb6+ {[%emt 0:00:04]} Ke7 {[%emt 0:00:03][%csl Ge1][%cal Rf2g2]} (47... Kf7 $5 48. Rb7+ $8 Ke8 49. Rb8+ Kf7 50. Rb7+ Ke8 51. Rb8+ Kf7 52. Rb7+ $11) 48. Rb7+ {[%emt 0:00:03]} Ke6 {[%emt 0:00:04][%csl Ge1][%cal Rf2g2]} 49. Rb6+ {[%emt 0:00:01]} Ke7 {[%emt 0:00:02][%csl Ge1][%cal Rf2g2]} (49... Kf7 $5 50. Rb7+ $8 Ke8 51. Rb8+ Kf7 52. Rb7+ Ke6 53. Rb6+ $11) 50. Rb7+ {[%emt 0:00:02]} Ke6 {[%emt 0:00:03] Weighted Error Value: White=0.18 (very precise) /Black=0.22 (precise)} 1/2-1/2

[Event "4th Tata Steel India Blitz Open 2022"]
[Site "Kolkota"]
[Date "2022.12.04"]
[Round "13.2"]
[White "Gukesh D"]
[Black "Nihal Sarin"]
[Result "0-1"]
[ECO "A09"]
[WhiteElo "2725"]
[BlackElo "2670"]
[Annotator "TA"]
[PlyCount "67"]
[EventDate "2022.11.29"]
[EventType "tourn"]
[EventCountry "IND"]
[SourceTitle "playchess.com"]
[Source "ChessBase"]
[SourceQuality "1"]
[TimeControl "180+2"]

{[%evp 9,67,0,0,0,0,-22,-13,-6,0,-4,-14,-33,0,-12,-7,-43,-35,-79,-84,-69,-31,-39,-53,-57,-60,-72,-45,-69,-79,-32,10,0,114,114,96,68,116,110,83,60,78,-2,-4,-42,-43,-47,-25,-26,-26,-304,-275,-270,-58,-59,-60,-64,93,97,234,81]} 1. Nf3 {[%emt 0:00:02]} d5 {[%emt 0:00:02]} 2. g3 {[%emt 0:00:02]} g6 {[%emt 0:00:01]} 3. c4 {[%emt 0:00:02]} dxc4 {[%emt 0:00:04]} 4. Na3 {[%emt 0:00:02]} Bg7 {[%emt 0:00:02]} 5. Nxc4 {[%emt 0:00:01]} Nc6 {[%emt 0:00:02]} 6. Bg2 {[%emt 0:00:01] A09: Réti Opening: 1 Nf3 d5 2 c4.} e5 {[%emt 0:00:01]} 7. d3 {[%emt 0:00:07]} e4 {[%emt 0:00:01]} 8. dxe4 {[%emt 0:00:01] The position is equal.} Qxd1+ {[%emt 0:00:03]} 9. Kxd1 {[%emt 0:00:02]} Nf6 {[%emt 0:00:08][%cal Bg8f6,Bf6h5,Bh5g3][%mdl 32]} 10. Ncd2 {[%emt 0:00:17] [#]} O-O $146 {[%emt 0:00:29][%mdl 1024] Black has compensation.} ({Predecessor:} 10... h6 11. a3 Be6 12. Rb1 Ba2 13. Ra1 Be6 14. Ne1 Ng4 15. Nd3 O-O-O 16. h3 Rxd3 17. hxg4 {½-½ (51) Movsziszian,K (2476)-Baenziger,F (2398) El Prat de Llobregat 2019}) 11. Ne1 {[%emt 0:00:02]} Rd8 {[%emt 0:00:42]} 12. h3 {[%emt 0:00:34] Prevents Ng4.} a5 {[%emt 0:00:12]} 13. f4 {[%emt 0:00:45]} Nh5 {[%emt 0:00:06]} 14. Bf3 {[%emt 0:00:14]} Nxg3 {[%emt 0:00:11] Black is much more active.} 15. Rg1 {[%emt 0:00:01]} Nh5 {[%emt 0:00:01]} 16. Bxh5 {[%emt 0:00:04]} gxh5 {[%emt 0:00:01]} 17. f5 {[%emt 0:00:09]} Kf8 {[%emt 0:00:02]} 18. Nd3 {[%emt 0:00:08]} b6 {[%emt 0:00:09]} 19. Nf3 {[%emt 0:00:21]} Ba6 {[%emt 0:00:03][%cal Bc8a6,Ba6b5,Bb5c6][%mdl 32]} (19... Nb4 {is interesting.} 20. Ng5 Bd4 21. Nxh7+ Ke7) 20. Bg5 {[%emt 0:00:04][%cal Of5f6] Threatens to win with f6!} Rd6 {[%emt 0:00:35] Inhibits f6.} (20... f6 $11 21. Rc1 Bxd3 22. exd3 Rxd3+ 23. Ke2 Nd4+ 24. Kxd3 Nxf3) 21. Bf4 $16 {[%emt 0:00:01]} Rd7 {[%emt 0:00:01] [#]} 22. e5 $1 {[%emt 0:00:18][%cal Be4e5,Be5e6][%mdl 32] f6 is the strong threat.} f6 $1 {[%emt 0:00:22]} 23. e6 {[%emt 0:00:09]} Rd5 {[%emt 0:00:01] [#]} 24. Rc1 $1 {[%emt 0:00:01]} ({Weaker is} 24. Bxc7 Bh6 25. Nd2 (25. Bxb6 $2 {perishes.} Bxd3 26. exd3 Rb8 $19) 25... Rc8 $17) 24... Bb5 {[%emt 0:00:05]} 25. Bd2 {[%emt 0:00:13]} ({Much weaker is} 25. Bxc7 Bh6 26. Nd2 Ne7 $14) ({Better is} 25. Ke1 $16) 25... Rxf5 $11 {[%emt 0:00:05]} 26. Rxc6 {[%emt 0:00:06][%mdl 64] Decoy} Bxc6 {[%emt 0:00:01]} 27. Nd4 {[%emt 0:00:01][%csl LRc6,LRf5]} Ba4+ {[%emt 0:00:07]} (27... Be4 {simplifies} 28. Nxf5 Bxf5 29. Nf4 Re8) 28. b3 {[%emt 0:00:00]} Rd5 {[%emt 0:00:01]} 29. Bc3 {[%emt 0:00:03][%mdl 8192]} (29. e7+ $11 Kf7 30. Ne6 Kxe6 31. Rxg7 Rxd3 32. exd3) 29... Be8 {[%emt 0:00:14]} 30. Nf4 {[%emt 0:00:01]} Re5 {[%emt 0:00:04]} ({Black should try} 30... Rd6 $19 31. Ke1 Bh6) 31. e7+ $1 $15 {[%emt 0:00:05]} Kf7 {[%emt 0:00:02] White must now prevent ...Bd7.} (31... Kxe7 $2 32. Rxg7+ Kd6 33. Rxh7 $16) 32. Nde6 $1 {[%emt 0:00:04][%csl Ge6][%cal Rg1g7][%mdl 64] Double Attack. Pair of Knights!} Bh6 {[%emt 0:00:03]} (32... Rxe6 $15 {keeps the upper hand.} 33. Nxe6 Kxe6 34. Rxg7 Bg6) 33. Bxe5 $16 {[%emt 0:00:04]} fxe5 {[%emt 0:00:01]} (33... Bxf4 $16 34. Nxc7 Bxe5 35. Nxa8 b5) 34. Nd5 $2 {[%emt 0:00:03][%mdl 32768] Weighted Error Value: White=0.22 (precise) /Black=0.41. Loss on time!?} (34. Nxc7 $18 Bxf4 35. Nxa8) 0-1

[Event "4th Tata Steel India Blitz Open 2022"]
[Site "Kolkota"]
[Date "2022.12.04"]
[Round "13.3"]
[White "Vidit, Santosh Gujrathi"]
[Black "Abdusattorov, Nodirbek"]
[Result "0-1"]
[ECO "E41"]
[WhiteElo "2724"]
[BlackElo "2713"]
[Annotator "TA"]
[PlyCount "74"]
[EventDate "2022.11.29"]
[EventType "tourn"]
[EventCountry "IND"]
[SourceTitle "playchess.com"]
[Source "ChessBase"]
[SourceQuality "1"]
[TimeControl "180+2"]

{[%evp 20,74,45,6,42,10,68,52,77,-69,-62,-56,98,85,77,100,114,49,52,44,65,39,83,86,83,72,108,0,0,0,356,325,315,-101,-109,-177,-163,-421,-406,-360,-21,-1440,-802,-29980,-29981,-29981,-29982,-29986,-29987,-29991,-29992,-29994,-29995,-29996,-29995,-29999,-29999]} 1. d4 {[%emt 0:00:01]} Nf6 {[%emt 0:00:01]} 2. c4 {[%emt 0:00:01]} e6 {[%emt 0:00:01]} 3. Nc3 {[%emt 0:00:01]} Bb4 {[%emt 0:00:02]} 4. e3 {[%emt 0:00:02]} O-O {[%emt 0:00:02]} 5. Bd3 {[%emt 0:00:01]} c5 {[%emt 0:00:07]} 6. Nf3 {[%emt 0:00:03]} d6 {[%emt 0:00:23]} 7. O-O {[%emt 0:00:06]} Bxc3 {[%emt 0:00:02]} 8. bxc3 {[%emt 0:00:01]} Nc6 {[%emt 0:00:03]} 9. e4 {[%emt 0:00:04]} e5 {[%emt 0:00:03]} 10. d5 {[%emt 0:00:05]} Ne7 {[%emt 0:00:03]} 11. Nd2 {[%emt 0:00:06]} Ne8 {[%emt 0:00:09] E41: Nimzo-Indian: Rubinstein: 4...c5 5 Bd3, including Hübner Variation.} 12. Qe2 {[%emt 0:00:23] [#]} f5 $146 {[%emt 0:00:03]} ({Better is} 12... Ng6 $11) ({Predecessor:} 12... Ng6 13. g3 Bh3 14. Re1 Qd7 15. f3 f5 16. exf5 Bxf5 17. Ne4 Nf6 18. Ng5 e4 19. Nxe4 Nxe4 20. Bxe4 {0-1 (59) Sahovic,D (2405)-Vratonjic,S (2445) Niksic 1996}) 13. f4 $14 {[%emt 0:00:13]} exf4 {[%emt 0:00:31] White is slightly better.} 14. Rxf4 {[%emt 0:00:03]} (14. exf5 $1 $16 Bxf5 15. Ne4 (15. Rxf4 Qd7 $14)) 14... Ng6 $15 {[%emt 0:00:03]} 15. Rf2 {[%emt 0:00:04][%cal Re4f5]} Ne5 $2 {[%emt 0:00:08]} (15... f4 $1 $15 {stays ahead.}) 16. exf5 $16 {[%emt 0:00:05]} Nf6 {[%emt 0:00:01]} 17. h3 $1 {[%emt 0:00:17]} Qa5 {[%emt 0:00:19]} 18. Bb2 {[%emt 0:00:51]} (18. Ne4 $1 $16 {[%cal Re4d6]}) 18... Bd7 {[%emt 0:00:03]} 19. Nf3 {[%emt 0:00:01]} Rae8 {[%emt 0:00:06][%cal Oe5c4] Strongly threatening ...Nxc4!} 20. Ng5 {[%emt 0:00:35]} Neg4 {[%emt 0:00:18][%mdl 64] [#]} 21. Ne6 $1 {[%emt 0:00:02]} Nxf2 {[%emt 0:00:02]} (21... Bxe6 22. dxe6) 22. Qxf2 {[%emt 0:00:01]} Rf7 {[%emt 0:00:01]} 23. g4 {[%emt 0:00:07]} (23. a4 $16) 23... b5 $1 $11 {[%emt 0:00:12]} 24. cxb5 {[%emt 0:00:04] aiming for c4.} Nxd5 $2 {[%emt 0:00:04][%mdl 8192] [#]} (24... c4 $1 $11 {and Black has nothing to worry.} 25. Bxc4 Bxb5) 25. Ng5 $1 $18 {[%emt 0:00:04]} Bxb5 {[%emt 0:00:25] [#]} 26. Nxf7 $2 {[%emt 0:00:02]} (26. c4 $1 $18 Rc7 27. cxb5) 26... Bxd3 $17 {[%emt 0:00:03]} 27. Nxd6 {[%emt 0:00:01]} (27. Ng5 $17) 27... Re2 $19 {[%emt 0:00:02]} 28. Qf3 {[%emt 0:00:01]} (28. Re1 Nf4 29. Rxe2 Nxe2+ 30. Kg2) 28... c4 {[%emt 0:00:01] ( -> ...Qc5+)} (28... Nxc3 $2 29. Qa8+) 29. Ba3 {[%emt 0:00:08][%cal Oa1b1] Against Qc5+} Re3 $2 {[%emt 0:00:11]} (29... h6 $19 30. Rb1 Qxa3 31. Qxd5+ Kh7) 30. Qf2 $2 {[%emt 0:00:04][%mdl 8192] White does not recover from this.} (30. Bb4 $11 Rxf3 31. Bxa5) 30... Qxa3 {[%emt 0:00:02]} 31. Nb5 {[%emt 0:00:11]} Qe7 {[%emt 0:00:04] Black mates.} 32. Nd4 {[%emt 0:00:02]} Qe5 {[%emt 0:00:02]} 33. Nc6 {[%emt 0:00:08]} Qe4 {[%emt 0:00:12]} 34. Qh4 {[%emt 0:00:00]} h6 {[%emt 0:00:04]} 35. Qd8+ {[%emt 0:00:04]} Kh7 {[%emt 0:00:01]} 36. Qd6 {[%emt 0:00:00]} Nf4 {[%emt 0:00:03][%csl Gf4][%cal Re4g2]} 37. Kf2 {[%emt 0:00:08]} Qf3+ {[%emt 0:00:02] Weighted Error Value: White=0.73/Black=0.70} 0-1

[Event "4th Tata Steel India Blitz Open 2022"]
[Site "Kolkota"]
[Date "2022.12.04"]
[Round "13.4"]
[White "Rameshbabu, Praggnanandhaa"]
[Black "Erigaisi Arjun"]
[Result "1/2-1/2"]
[ECO "A04"]
[WhiteElo "2678"]
[BlackElo "2718"]
[Annotator "TA"]
[PlyCount "90"]
[EventDate "2022.11.29"]
[EventType "tourn"]
[EventCountry "IND"]
[SourceTitle "playchess.com"]
[Source "ChessBase"]
[SourceQuality "1"]
[TimeControl "180+2"]

{[%evp 9,90,0,-10,0,0,0,-2,0,0,-19,-11,-8,0,-45,-46,-31,-28,-62,0,-45,7,0,0,0,10,-3,-12,-25,0,0,0,1,0,0,2,9,25,14,14,12,12,8,51,51,51,51,51,51,51,51,51,51,52,28,33,30,37,0,0,0,8,8,8,8,8,7,8,0,0,0,0,0,0,0,0,0,0,0,0,0,0,0,0]} 1. Nf3 {[%emt 0:00:02]} c5 {[%emt 0:00:01]} 2. g3 {[%emt 0:00:04]} Nc6 {[%emt 0:00:01]} 3. Bg2 {[%emt 0:00:02]} g6 {[%emt 0:00:02]} 4. c3 {[%emt 0:00:04]} e5 {[%emt 0:00:02]} 5. d4 {[%emt 0:00:09]} cxd4 {[%emt 0:00:02]} 6. cxd4 {[%emt 0:00:01] A04: Unusual lines after 1 Nf3 and King's Indian Attack.} e4 {[%emt 0:00:01]} 7. Ne5 {[%emt 0:00:01]} d5 {[%emt 0:00:01]} 8. Nxc6 {[%emt 0:00:10]} bxc6 {[%emt 0:00:02]} 9. O-O {[%emt 0:00:02]} Bg7 {[%emt 0:00:01]} 10. Nc3 {[%emt 0:00:04]} h5 {[%emt 0:00:04] [#]} 11. f3 $146 {[%emt 0:00:06]} ({Predecessor:} 11. h4 Ne7 12. Bg5 O-O 13. Qd2 Bg4 14. Bh6 Bxh6 15. Qxh6 Nf5 16. Qd2 e3 17. fxe3 Nxg3 18. Rf4 Qxh4 19. Qe1 Rae8 20. Qf2 f5 21. Bf1 Qh1# {0-1 (21) Lugovskoy,M (2416)-Alekseenko,K (2639) Chess.com INT 2018}) 11... exf3 {[%emt 0:00:05]} 12. exf3 {[%emt 0:00:03]} Ne7 {[%emt 0:00:12]} 13. Bg5 {[%emt 0:00:20]} O-O {[%emt 0:00:05]} (13... Qb6 $15 14. Re1 Be6) 14. Qd2 {[%emt 0:00:01]} (14. Re1 $5 {[%cal Rg5e7]} Re8 15. Na4 $14) 14... Re8 {[%emt 0:00:19]} ({Black should play} 14... Qc7 $15) 15. Rfe1 {[%emt 0:00:06]} Be6 {[%emt 0:00:02]} 16. Na4 {[%emt 0:00:20] Prevents Qb6.} Qc8 {[%emt 0:00:11]} 17. Bxe7 {[%emt 0:00:10]} Rxe7 {[%emt 0:00:01]} 18. Nc5 {[%emt 0:00:03]} Qc7 {[%emt 0:00:09]} 19. Nxe6 {[%emt 0:00:17]} Rxe6 {[%emt 0:00:02]} 20. Rxe6 {[%emt 0:00:02]} fxe6 {[%emt 0:00:01]} 21. f4 {[%emt 0:00:01]} Rb8 {[%emt 0:00:11]} 22. b3 {[%emt 0:00:12]} c5 {[%emt 0:00:30]} 23. Rc1 {[%emt 0:00:04]} c4 {[%emt 0:00:01]} 24. bxc4 {[%emt 0:00:24]} dxc4 {[%emt 0:00:02]} 25. Bf1 {[%emt 0:00:02]} Qb6 {[%emt 0:00:09]} 26. Rxc4 {[%emt 0:00:03]} (26. Bxc4 $2 {perishes.} Bxd4+ 27. Kg2 Be3 $19) 26... Rd8 {[%emt 0:00:03][%cal Rd8d4]} 27. Qc2 {[%emt 0:00:15]} Rxd4 {[%emt 0:00:22] [#] ( -> ...Rd2+)} 28. Rc6 {[%emt 0:00:17]} Rd2+ {[%emt 0:00:02]} 29. Rxb6 {[%emt 0:00:01] Intending Rb8+ and mate.} Rxc2 {[%emt 0:00:02]} 30. Rxe6 $14 {[%emt 0:00:03][%mdl 4096] Endgame KRB-KRB} Kf7 {[%emt 0:00:04]} 31. Rd6 {[%emt 0:00:14] With the idea Bd3.} (31. Re2 {simplifies} Rxe2 32. Bxe2 Bd4+ 33. Kg2) 31... Bf8 {[%emt 0:00:02]} 32. Rd7+ {[%emt 0:00:04]} Ke6 {[%emt 0:00:01]} 33. Bh3+ {[%emt 0:00:02]} (33. Rxa7 $2 {loses.} Bc5+ 34. Kh1 Bxa7 $19) 33... Kf6 {[%emt 0:00:02] The position is equal.} 34. Bf1 {[%emt 0:00:13]} Rxa2 {[%emt 0:00:31]} 35. Bc4 {[%emt 0:00:01][%csl Gc4][%cal Rd7f7] [#]} Ra1+ {[%emt 0:00:01]} 36. Kg2 {[%emt 0:00:01][%csl Gc4][%cal Rd7f7]} Be7 {[%emt 0:00:02]} 37. h3 {[%emt 0:00:02]} Rc1 {[%emt 0:00:02]} 38. Bg8 {[%emt 0:00:08]} Rc2+ {[%emt 0:00:05]} 39. Kf3 {[%emt 0:00:02][%cal Og3g4]} Rc3+ {[%emt 0:00:01]} 40. Kf2 {[%emt 0:00:02]} Rc2+ {[%emt 0:00:14]} 41. Kf1 {[%emt 0:00:01]} Rc1+ {[%emt 0:00:02]} 42. Ke2 {[%emt 0:00:01][%cal Og3g4]} Rc2+ {[%emt 0:00:02]} 43. Kf1 {[%emt 0:00:05]} Rc1+ {[%emt 0:00:04]} 44. Ke2 {[%emt 0:00:00][%cal Og3g4]} Rc2+ {[%emt 0:00:03]} 45. Kf3 {[%emt 0:00:03][%cal Og3g4]} Rc3+ {[%emt 0:00:02] Weighted Error Value: White=0.07 (flawless) /Black=0.08 (flawless)} 1/2-1/2